fUSD/lending_fUSD_20240813
["ID","MTS","AMOUNT","RATE_DAILY","PERIOD"]
[334750118,1723535466316,-500.0,0.00014347,2]
[334750119,1723535466325,-778.62,0.00014347,2]
[334750120,1723535466335,-1760.09,0.00014347,2]
[334750121,1723535466344,-500.0,0.00014347,2]
[334750122,1723535466354,-206.63670179,0.00014347,2]
[334750123,1723535466363,-500.0,0.00014347,2]
[334750124,1723535466372,-500.0,0.00014347,2]
[334750125,1723535466381,-500.0,0.00014347,2]
[334750126,1723535466391,-1230.55,0.00014347,2]
[334750127,1723535466400,-537.47,0.00014347,2]
[334750128,1723535466410,-1688.57,0.00014347,2]
[334750129,1723535466421,-1001.08,0.00014347,2]
[334750130,1723535466430,-828.014967,0.00014347,2]
[334750131,1723535466439,-435.949083,0.00014347,2]
[334750132,1723535466449,-500.0,0.00014347,2]
[334750133,1723535466581,-500.0,0.00014347,2]
[334750134,1723535466601,-28588.8833,0.00014347,2]
[334750135,1723535466611,-21831.704954,0.00014347,2]
[334750136,1723535466621,-500.0,0.00014347,2]
[334750137,1723535466633,-500.0,0.00014347,2]
[334750138,1723535466643,-323.03885537,0.00014347,2]
[334750139,1723535466652,-6177.95,0.00014347,2]
[334750140,1723535466661,-4092.104095,0.00014347,2]
[334750141,1723535466670,-500.0,0.00014347,2]
[334750142,1723535466679,-500.0,0.00014347,2]
[334750143,1723535466688,-2922.39,0.00014347,2]
[334750144,1723535466698,-500.0,0.00014347,2]
[334750145,1723535466707,-500.0,0.00014347,2]
[334750146,1723535466716,-1300.36,0.00014347,2]
[334750147,1723535466726,-500.0,0.00014347,2]
[334750148,1723535466735,-500.0,0.00014347,2]
[334750149,1723535466745,-609.65,0.00014347,2]
[334750150,1723535466757,-523.35,0.00014347,2]
[334750151,1723535466766,-1411.68,0.00014347,2]
[334750152,1723535466774,-500.0,0.00014347,2]
[334750153,1723535466783,-500.0,0.00014347,2]
[334750154,1723535466792,-500.0,0.00014347,2]
[334750155,1723535466802,-1209.11,0.00014347,2]
[334750156,1723535466811,-518.03,0.00014347,2]
[334750157,1723535466820,-1085.25,0.00014347,2]
[334750158,1723535466829,-500.0,0.00014347,2]
[334750159,1723535466839,-991.7,0.00014347,2]
[334750160,1723535466848,-507.82,0.00014347,2]
[334750161,1723535466858,-500.0,0.00014347,2]
[334750162,1723535466867,-386.06575197,0.00014347,2]
[334750163,1723535466876,-500.0,0.00014347,2]
[334750164,1723535466885,-500.0,0.00014347,2]
[334750165,1723535466894,-500.0,0.00014347,2]
[334750166,1723535466905,-516.78720051,0.00014347,2]
[334750167,1723535466914,-686.92,0.00014347,2]
[334750168,1723535466923,-500.0,0.00014347,2]
[334750169,1723535466932,-2622.01,0.00014347,2]
[334750170,1723535466942,-500.0,0.00014347,2]
[334750171,1723535466951,-551.73,0.00014347,2]
[334750172,1723535466960,-500.0,0.00014347,2]
[334750173,1723535466970,-500.0,0.00014347,2]
[334750174,1723535466979,-500.0,0.00014347,2]
[334750175,1723535466988,-1670.97,0.00014347,2]
[334750176,1723535466998,-670.23,0.00014347,2]
[334750177,1723535467007,-500.0,0.00014347,2]
[334750178,1723535467016,-500.0,0.00014347,2]
[334750179,1723535467026,-3541.36,0.00014347,2]
[334750180,1723535467035,-500.0,0.00014347,2]
[334750181,1723535467045,-500.0,0.00014347,2]
[334750182,1723535467055,-500.0,0.00014347,2]
[334750183,1723535467065,-500.0,0.00014347,2]
[334750184,1723535467074,-500.0,0.00014347,2]
[334750185,1723535467084,-500.0,0.00014347,2]
[334750186,1723535467092,-1085.98,0.00014347,2]
[334750187,1723535467101,-500.0,0.00014347,2]
[334750188,1723535467111,-500.0,0.00014347,2]
[334750189,1723535467120,-2167.9,0.00014347,2]
[334750190,1723535467129,-500.0,0.00014347,2]
[334750191,1723535467139,-500.0,0.00014347,2]
[334750192,1723535467148,-514.92796367,0.00014347,2]
[334750193,1723535467158,-500.0,0.00014347,2]
[334750194,1723535467167,-500.0,0.00014347,2]
[334750195,1723535467176,-1180.27,0.00014347,2]
[334750196,1723535467185,-500.0,0.00014347,2]
[334750197,1723535467196,-2066.64,0.00014347,2]
[334750198,1723535467205,-913.4,0.00014347,2]
[334750199,1723535467215,-500.0,0.00014347,2]
[334750200,1723535467225,-1756.06,0.00014347,2]
[334750201,1723535467234,-500.0,0.00014347,2]
[334750202,1723535467243,-500.0,0.00014347,2]
[334750203,1723535467260,-610.16,0.00014347,2]
[334750204,1723535467269,-4710.01,0.00014347,2]
[334750205,1723535467279,-500.0,0.00014347,2]
[334750206,1723535467289,-1586.08,0.00014347,2]
[334750207,1723535467298,-500.0,0.00014347,2]
[334750208,1723535467307,-500.0,0.00014347,2]
[334750209,1723535467317,-500.0,0.00014347,2]
[334750210,1723535467327,-500.0,0.00014347,2]
[334750211,1723535467336,-842.93,0.00014347,2]
[334750212,1723535467345,-500.84,0.00014347,2]
[334750213,1723535467355,-500.0,0.00014347,2]
[334750214,1723535467363,-500.0,0.00014347,2]
[334750215,1723535467374,-934.19,0.00014347,2]
[334750216,1723535467384,-500.0,0.00014347,2]
[334750217,1723535467393,-4812.55,0.00014347,2]
[334750218,1723535467402,-500.0,0.00014347,2]
[334750219,1723535467411,-500.0,0.00014347,2]
[334750220,1723535467421,-605.96,0.00014347,2]
[334750221,1723535467430,-755.9,0.00014347,2]
[334750222,1723535467439,-500.0,0.00014347,2]
[334750223,1723535467449,-1219.63,0.00014347,2]
[334750224,1723535467458,-560.29259561,0.00014347,2]
[334750225,1723535467468,-500.0,0.00014347,2]
[334750226,1723535467477,-889.59,0.00014347,2]
[334750227,1723535467486,-2146.37,0.00014347,2]
[334750228,1723535467496,-521.65,0.00014347,2]
[334750229,1723535467508,-500.0,0.00014347,2]
[334750230,1723535467517,-2584.53,0.00014347,2]
[334750231,1723535467526,-500.0,0.00014347,2]
[334750232,1723535467537,-500.0,0.00014347,2]
[334750233,1723535467550,-500.0,0.00014347,2]
[334750234,1723535467559,-500.0,0.00014347,2]
[334750235,1723535467569,-500.0,0.00014347,2]
[334750236,1723535467578,-500.0,0.00014347,2]
[334750237,1723535467589,-500.0,0.00014347,2]
[334750238,1723535467598,-690.9,0.00014347,2]
[334750239,1723535467608,-645.82,0.00014347,2]
[334750240,1723535467619,-500.0,0.00014347,2]
[334750241,1723535467629,-4824.32,0.00014347,2]
[334750242,1723535467638,-500.0,0.00014347,2]
[334750243,1723535467648,-2092.45,0.00014347,2]
[334750244,1723535467657,-1427.21,0.00014347,2]
[334750245,1723535467667,-500.0,0.00014347,2]
[334750246,1723535467676,-500.0,0.00014347,2]
[334750247,1723535467686,-500.0,0.00014347,2]
[334750248,1723535467696,-500.0,0.00014347,2]
[334750249,1723535467705,-500.0,0.00014347,2]
[334750250,1723535467715,-500.0,0.00014347,2]
[334750251,1723535467725,-500.0,0.00014347,2]
[334750252,1723535467735,-500.0,0.00014347,2]
[334750253,1723535467745,-500.0,0.00014347,2]
[334750254,1723535467757,-500.0,0.00014347,2]
[334750255,1723535467766,-2925.2,0.00014347,2]
[334750256,1723535467776,-500.0,0.00014347,2]
[334750257,1723535467785,-500.0,0.00014347,2]
[334750258,1723535467795,-500.0,0.00014347,2]
[334750259,1723535467804,-500.0,0.00014347,2]
[334750260,1723535467814,-500.0,0.00014347,2]
[334750261,1723535467824,-6224.39950182,0.0001438,2]
[334750262,1723535467833,-338.18913153,0.00014398,2]
[334750263,1723535467843,-2262.92862297,0.000144,2]
[334750264,1723535467852,-507.2,0.0001441,2]
[334750265,1723535467862,-1634.56112514,0.00014451,2]
[334750266,1723535467872,-1634.56112514,0.00014451,2]
[334750267,1723535467881,-3108.3,0.00014467,2]
[334750268,1723535467891,-3205.28,0.00014467,2]
[334750269,1723535467900,-500.0,0.00014469,2]
[334750270,1723535467909,-500.0,0.00014469,2]
[334750271,1723535467919,-500.0,0.00014469,2]
[334750272,1723535467928,-500.0,0.00014469,2]
[334750273,1723535467937,-3108.3,0.00014469,2]
[334750274,1723535467947,-3108.3,0.00014469,2]
[334750275,1723535467956,-3108.3,0.00014469,2]
[334750276,1723535467965,-3205.28,0.00014469,2]
[334750277,1723535467975,-3205.28,0.00014469,2]
[334750278,1723535467984,-3205.28,0.00014469,2]
[334750279,1723535467992,-161.438423,0.0001447,2]
[334750280,1723535468004,-153.041908,0.0001447,2]
[334750281,1723535468013,-151.0,0.0001447,2]
[334750282,1723535468022,-200.0,0.00014473,2]
[334750283,1723535468031,-200.0,0.00014473,2]
[334750284,1723535468041,-9045.17396559,0.00014477,2]
[334750285,1723535468050,-500.0,0.00014479,2]
[334750286,1723535468059,-500.0,0.00014479,2]
[334750287,1723535468068,-500.0,0.00014479,2]
[334750288,1723535468078,-500.0,0.00014479,2]
[334750289,1723535468087,-3108.3,0.00014479,2]
[334750290,1723535468096,-3108.3,0.00014479,2]
[334750291,1723535468105,-3108.3,0.00014479,2]
[334750292,1723535468115,-3108.3,0.00014479,2]
[334750293,1723535468124,-3108.3,0.00014479,2]
[334750294,1723535468134,-3205.28,0.00014479,2]
[334750295,1723535468143,-3205.28,0.00014479,2]
[334750296,1723535468153,-3205.28,0.00014479,2]
[334750297,1723535468162,-3205.28,0.00014479,2]
[334750298,1723535468172,-3205.28,0.00014479,2]
[334750299,1723535468181,-256269.86858937,0.0001448,2]
[334750300,1723535468191,-22176.94213803,0.0001448,2]
[334750301,1723535468201,-1098551.16649251,0.0001448,2]
[334750302,1723535468211,-20638.88396081,0.00014497,2]
[334750303,1723535468220,-150.0,0.00014513,2]
[334750304,1723535468230,-150.0,0.00014514,2]
[334750305,1723535468239,-150.0,0.00014518,2]
[334750306,1723535468249,-155.0,0.00014519,2]
[334750307,1723535468260,-271.04583573,0.00014519,2]
[334750308,1723535468270,-500.0,0.0001452,2]
[334750309,1723535468280,-500.0,0.0001452,2]
[334750310,1723535468290,-500.0,0.0001452,2]
[334750311,1723535468299,-500.0,0.0001452,2]
[334750312,1723535468308,-771.68,0.0001452,2]
[334750313,1723535468317,-500.0,0.0001452,2]
[334750314,1723535468327,-150.0,0.00014523,2]
[334750315,1723535468336,-150.0,0.00014525,2]
[334750316,1723535468345,-150.0,0.00014526,2]
[334750317,1723535468355,-150.0,0.00014537,2]
[334750318,1723535468364,-150.0,0.00014549,2]
[334750319,1723535468374,-1412.75,0.00014549,2]
[334750320,1723535468383,-500.0,0.00014549,2]
[334750321,1723535468393,-592.49248734,0.00014549,2]
[334750322,1723535468403,-500.0,0.00014549,2]
[334750323,1723535468413,-500.0,0.00014549,2]
[334750324,1723535468422,-500.0,0.00014549,2]
[334750325,1723535468432,-500.0,0.00014549,2]
[334750326,1723535468441,-500.0,0.0001455,2]
[334750327,1723535468450,-500.0,0.0001455,2]
[334750328,1723535468460,-500.0,0.0001455,2]
[334750329,1723535468469,-500.0,0.0001455,2]
[334750330,1723535468478,-500.0,0.0001455,2]
[334750331,1723535468488,-347.93557692,0.0001455,2]
[334750332,1723535468498,-508.59,0.0001455,2]
[334750333,1723535468508,-500.0,0.0001455,2]
[334750334,1723535468517,-500.0,0.0001455,2]
[334750335,1723535468526,-500.0,0.0001455,2]
[334750336,1723535468536,-500.0,0.0001455,2]
[334750337,1723535468549,-500.0,0.0001455,2]
[334750338,1723535468558,-500.0,0.0001455,2]
[334750339,1723535468567,-500.0,0.0001455,2]
[334750340,1723535468577,-500.0,0.0001455,2]
[334750341,1723535468586,-179.62568168,0.0001455,2]
[334750342,1723535468595,-500.0,0.0001455,2]
[334750343,1723535468724,-500.0,0.0001455,2]
[334750344,1723535468745,-500.0,0.0001455,2]
[334750345,1723535468762,-500.0,0.0001455,2]
[334750346,1723535468771,-500.0,0.0001455,2]
[334750347,1723535468780,-500.0,0.0001455,2]
[334750348,1723535468789,-500.0,0.0001455,2]
[334750349,1723535468799,-500.0,0.0001455,2]
[334750350,1723535468808,-500.0,0.0001455,2]
[334750351,1723535468817,-500.0,0.0001455,2]
[334750352,1723535468826,-500.0,0.0001455,2]
[334750353,1723535468836,-500.0,0.0001455,2]
[334750354,1723535468845,-500.0,0.0001455,2]
[334750355,1723535468855,-500.0,0.0001455,2]
[334750356,1723535468864,-500.0,0.0001455,2]
[334750357,1723535468874,-500.0,0.0001455,2]
[334750358,1723535468883,-500.0,0.0001455,2]
[334750359,1723535468893,-500.0,0.0001455,2]
[334750360,1723535468903,-500.0,0.0001455,2]
[334750361,1723535468912,-500.0,0.0001455,2]
[334750362,1723535468926,-500.0,0.0001455,2]
[334750363,1723535468935,-500.0,0.0001455,2]
[334750364,1723535468945,-534.46757856,0.0001455,2]
[334750365,1723535468953,-500.0,0.0001455,2]
[334750366,1723535468962,-500.0,0.0001455,2]
[334750367,1723535468972,-500.0,0.0001455,2]
[334750368,1723535469000,-500.0,0.0001455,2]
[334750369,1723535469009,-500.0,0.0001455,2]
[334750370,1723535469018,-500.0,0.0001455,2]
[334750371,1723535469028,-500.0,0.0001455,2]
[334750372,1723535469037,-516.65007142,0.0001455,2]
[334750373,1723535469047,-500.0,0.0001455,2]
[334750374,1723535469055,-500.0,0.0001455,2]
[334750375,1723535469065,-500.0,0.0001455,2]
[334750376,1723535469074,-500.0,0.0001455,2]
[334750377,1723535469082,-500.0,0.0001455,2]
[334750378,1723535469092,-500.0,0.0001455,2]
[334750379,1723535469100,-500.0,0.0001455,2]
[334750380,1723535469109,-500.0,0.0001455,2]
[334750381,1723535469118,-500.0,0.0001455,2]
[334750382,1723535469128,-366.06197823,0.0001455,2]
[334750383,1723535469137,-522.24536415,0.0001455,2]
[334750384,1723535469146,-524.45316898,0.0001455,2]
[334750385,1723535469155,-500.0,0.0001455,2]
[334750386,1723535469164,-500.0,0.0001455,2]
[334750387,1723535469174,-500.0,0.0001455,2]
[334750388,1723535469183,-500.0,0.0001455,2]
[334750389,1723535469192,-500.0,0.0001455,2]
[334750390,1723535469201,-535.58386451,0.0001455,2]
[334750391,1723535469211,-6591.73,0.0001455,2]
[334750392,1723535469220,-500.0,0.0001455,2]
[334750393,1723535469230,-500.0,0.0001455,2]
[334750394,1723535469239,-500.0,0.0001455,2]
[334750395,1723535469250,-1037.55,0.0001455,2]
[334750396,1723535469259,-158.97376831,0.0001455,2]
[334750397,1723535469269,-510.50669359,0.0001455,2]
[334750398,1723535469278,-636.230921,0.0001455,2]
[334750399,1723535469287,-500.0,0.0001455,2]
[334750400,1723535469296,-500.0,0.0001455,2]
[334750401,1723535469306,-531.60286765,0.0001455,2]
[334750402,1723535469315,-500.0,0.0001455,2]
[334750403,1723535469324,-500.0,0.0001455,2]
[334750404,1723535469334,-981.15,0.0001455,2]
[334750405,1723535469343,-500.0,0.0001455,2]
[334750406,1723535469352,-500.0,0.0001455,2]
[334750407,1723535469362,-159.36771188,0.0001455,2]
[334750408,1723535469371,-500.0,0.0001455,2]
[334750409,1723535469380,-500.0,0.0001455,2]
[334750410,1723535469390,-553.64,0.0001455,2]
[334750411,1723535469399,-505.73,0.0001455,2]
[334750412,1723535469408,-888.8,0.0001455,2]
[334750413,1723535469417,-500.0,0.0001455,2]
[334750414,1723535469427,-500.0,0.0001455,2]
[334750415,1723535469435,-494.20542157,0.0001455,2]
[334750416,1723535469445,-4003.23,0.0001455,2]
[334750417,1723535469454,-500.0,0.0001455,2]
[334750418,1723535469463,-500.0,0.0001455,2]
[334750419,1723535469473,-500.0,0.0001455,2]
[334750420,1723535469482,-773.78,0.0001455,2]
[334750421,1723535469492,-500.0,0.0001455,2]
[334750422,1723535469503,-560.08,0.0001455,2]
[334750423,1723535469513,-500.0,0.0001455,2]
[334750424,1723535469522,-500.0,0.0001455,2]
[334750425,1723535469532,-500.0,0.0001455,2]
[334750426,1723535469546,-500.0,0.0001455,2]
[334750427,1723535469555,-1646.38,0.0001455,2]
[334750428,1723535469565,-1106.51,0.0001455,2]
[334750429,1723535469574,-1145.83,0.0001455,2]
[334750430,1723535469584,-500.0,0.0001455,2]
[334750431,1723535469594,-515.96925603,0.0001455,2]
[334750432,1723535469604,-500.0,0.0001455,2]
[334750433,1723535469613,-500.0,0.0001455,2]
[334750434,1723535469623,-1271.02,0.0001455,2]
[334750435,1723535469633,-500.0,0.0001455,2]
[334750436,1723535469643,-500.0,0.0001455,2]
[334750437,1723535469651,-500.0,0.0001455,2]
[334750438,1723535469661,-1189.17,0.0001455,2]
[334750439,1723535469670,-756.19,0.0001455,2]
[334750440,1723535469680,-500.0,0.0001455,2]
[334750441,1723535469691,-633.87,0.0001455,2]
[334750442,1723535469700,-500.0,0.0001455,2]
[334750443,1723535469710,-500.0,0.0001455,2]
[334750444,1723535469722,-500.0,0.0001455,2]
[334750445,1723535469732,-500.0,0.0001455,2]
[334750446,1723535469742,-500.0,0.0001455,2]
[334750447,1723535469753,-507.8,0.0001455,2]
[334750448,1723535469762,-500.0,0.0001455,2]
[334750449,1723535469772,-500.0,0.0001455,2]
[334750450,1723535469782,-555.42,0.0001455,2]
[334750451,1723535469791,-500.0,0.0001455,2]
[334750452,1723535469801,-869.38,0.0001455,2]
[334750453,1723535469811,-344.83240398,0.0001455,2]
[334750454,1723535469821,-500.0,0.0001455,2]
[334750455,1723535469831,-500.0,0.0001455,2]
[334750456,1723535469840,-500.0,0.0001455,2]
[334750457,1723535469850,-500.0,0.00014551,2]
[334750458,1723535469859,-500.0,0.00014551,2]
[334750459,1723535469868,-500.0,0.00014551,2]
[334750460,1723535469878,-653.45,0.00014551,2]
[334750461,1723535469887,-500.0,0.00014551,2]
[334750462,1723535469896,-529.71488455,0.00014551,2]
[334750463,1723535469906,-663.86,0.00014551,2]
[334750464,1723535469915,-500.0,0.00014551,2]
[334750465,1723535469924,-500.0,0.00014551,2]
[334750466,1723535469934,-500.0,0.00014551,2]
[334750467,1723535469944,-500.0,0.00014551,2]
[334750468,1723535469954,-500.0,0.00014551,2]
[334750469,1723535469963,-488.75588681,0.00014551,2]
[334750470,1723535469972,-500.0,0.00014551,2]
[334750471,1723535469981,-784.51,0.00014551,2]
[334750472,1723535469991,-500.0,0.00014551,2]
[334750473,1723535470001,-500.0,0.00014551,2]
[334750474,1723535470010,-530.32973696,0.00014551,2]
[334750475,1723535470020,-579.73219231,0.00014551,2]
[334750476,1723535470029,-520.05153831,0.00014551,2]
[334750477,1723535470039,-500.0,0.00014551,2]
[334750478,1723535470047,-500.0,0.00014551,2]
[334750479,1723535470057,-500.0,0.00014551,2]
[334750480,1723535470066,-500.0,0.00014551,2]
[334750481,1723535470075,-500.0,0.00014551,2]
[334750482,1723535470084,-500.0,0.00014551,2]
[334750483,1723535470094,-500.0,0.00014551,2]
[334750484,1723535470103,-528.17348685,0.00014551,2]
[334750485,1723535470112,-500.0,0.00014551,2]
[334750486,1723535470122,-484.61357619,0.00014551,2]
[334750487,1723535470132,-500.0,0.00014551,2]
[334750488,1723535470141,-500.0,0.00014551,2]
[334750489,1723535470151,-500.0,0.00014551,2]
[334750490,1723535470160,-500.0,0.00014551,2]
[334750491,1723535470170,-522.70048067,0.00014551,2]
[334750492,1723535470179,-500.0,0.00014551,2]
[334750493,1723535470188,-500.0,0.00014551,2]
[334750494,1723535470198,-500.0,0.00014551,2]
[334750495,1723535470207,-500.0,0.00014551,2]
[334750496,1723535470217,-2199.74,0.00014551,2]
[334750497,1723535470226,-500.0,0.00014551,2]
[334750498,1723535470236,-500.0,0.00014551,2]
[334750499,1723535470245,-500.0,0.00014551,2]
[334750500,1723535470255,-500.0,0.00014551,2]
[334750501,1723535470264,-500.0,0.00014551,2]
[334750502,1723535470274,-525.58050221,0.00014551,2]
[334750503,1723535470283,-500.0,0.00014551,2]
[334750504,1723535470292,-500.0,0.00014551,2]
[334750505,1723535470301,-618.00642928,0.00014551,2]
[334750506,1723535470310,-500.0,0.00014551,2]
[334750507,1723535470320,-500.0,0.00014551,2]
[334750508,1723535470329,-351.56507206,0.00014551,2]
[334750509,1723535470339,-500.0,0.00014551,2]
[334750510,1723535470348,-500.0,0.00014551,2]
[334750511,1723535470357,-500.0,0.00014551,2]
[334750512,1723535470366,-500.0,0.00014551,2]
[334750513,1723535470375,-1837.44,0.00014551,2]
[334750514,1723535470384,-500.0,0.00014551,2]
[334750515,1723535470394,-909.74,0.00014551,2]
[334750516,1723535470403,-500.0,0.00014551,2]
[334750517,1723535470412,-500.0,0.00014551,2]
[334750518,1723535470422,-500.0,0.00014551,2]
[334750519,1723535470431,-16518.43,0.00014551,2]
[334750520,1723535470440,-500.0,0.00014551,2]
[334750521,1723535470450,-500.0,0.00014551,2]
[334750522,1723535470459,-500.0,0.00014551,2]
[334750523,1723535470469,-500.0,0.00014551,2]
[334750524,1723535470478,-500.0,0.00014551,2]
[334750525,1723535470487,-500.0,0.00014551,2]
[334750526,1723535470497,-500.0,0.00014551,2]
[334750527,1723535470507,-500.0,0.00014551,2]
[334750528,1723535470516,-500.0,0.00014551,2]
[334750529,1723535470526,-932.05,0.00014551,2]
[334750530,1723535470535,-500.0,0.00014551,2]
[334750531,1723535470548,-724.39,0.00014551,2]
[334750532,1723535470558,-500.0,0.00014551,2]
[334750533,1723535470567,-500.0,0.00014551,2]
[334750534,1723535470577,-335.47725225,0.00014551,2]
[334750535,1723535470587,-522.06205106,0.00014551,2]
[334750536,1723535470597,-500.0,0.00014551,2]
[334750537,1723535470606,-211.4,0.00014551,2]
[334750538,1723535470741,-500.0,0.00014551,2]
[334750539,1723535470751,-400.04830255,0.00014551,2]
[334750540,1723535470761,-587.6,0.00014551,2]
[334750541,1723535470770,-500.0,0.00014551,2]
[334750542,1723535470780,-500.0,0.00014551,2]
[334750543,1723535470790,-908.11,0.00014551,2]
[334750544,1723535470800,-799.22,0.00014551,2]
[334750545,1723535470809,-526.55761553,0.00014551,2]
[334750546,1723535470818,-500.0,0.00014551,2]
[334750547,1723535470827,-500.0,0.00014551,2]
[334750548,1723535470836,-1082.91,0.00014551,2]
[334750549,1723535470846,-500.0,0.00014551,2]
[334750550,1723535470855,-500.0,0.00014551,2]
[334750551,1723535470865,-500.0,0.00014551,2]
[334750552,1723535470874,-500.0,0.00014551,2]
[334750553,1723535470883,-500.0,0.00014551,2]
[334750554,1723535470896,-500.0,0.00014551,2]
[334750555,1723535470907,-15076.44,0.00014551,2]
[334750556,1723535470916,-611.03972888,0.00014551,2]
[334750557,1723535470926,-500.0,0.00014551,2]
[334750558,1723535470936,-500.0,0.00014551,2]
[334750559,1723535470945,-500.0,0.00014551,2]
[334750560,1723535470954,-500.0,0.00014551,2]
[334750561,1723535470966,-500.0,0.00014551,2]
[334750562,1723535470976,-4670.57,0.00014551,2]
[334750563,1723535470985,-500.0,0.00014551,2]
[334750564,1723535470994,-532.13814796,0.00014551,2]
[334750565,1723535471005,-500.0,0.00014551,2]
[334750566,1723535471014,-667.34,0.00014551,2]
[334750567,1723535471024,-571.04,0.00014551,2]
[334750568,1723535471033,-500.0,0.00014551,2]
[334750569,1723535471043,-1754.66,0.00014551,2]
[334750570,1723535471054,-500.0,0.00014551,2]
[334750571,1723535471064,-492.7795282,0.00014551,2]
[334750572,1723535471076,-500.0,0.00014551,2]
[334750573,1723535471085,-500.0,0.00014551,2]
[334750574,1723535471095,-500.0,0.00014551,2]
[334750575,1723535471106,-500.0,0.00014551,2]
[334750576,1723535471116,-534.32,0.00014551,2]
[334750577,1723535471126,-394.57877768,0.00014551,2]
[334750578,1723535471136,-500.0,0.00014551,2]
[334750579,1723535471146,-524.33,0.00014551,2]
[334750580,1723535471156,-500.0,0.00014551,2]
[334750581,1723535471167,-500.0,0.00014551,2]
[334750582,1723535471177,-682.76,0.00014551,2]
[334750583,1723535471187,-1600.18,0.00014551,2]
[334750584,1723535471198,-2553.18,0.00014551,2]
[334750585,1723535471208,-210.93391483,0.00014551,2]
[334750586,1723535471218,-591.80894825,0.00014551,2]
[334750587,1723535471227,-500.0,0.00014551,2]
[334750588,1723535471238,-380.72718526,0.00014551,2]
[334750589,1723535471249,-500.0,0.00014551,2]
[334750590,1723535471258,-462.02054913,0.00014551,2]
[334750591,1723535471268,-500.0,0.00014551,2]
[334750592,1723535471278,-500.0,0.00014551,2]
[334750593,1723535471287,-549.82,0.00014551,2]
[334750594,1723535471297,-500.0,0.00014551,2]
[334750595,1723535471307,-705.6,0.00014551,2]
[334750596,1723535471317,-343.95733565,0.00014551,2]
[334750597,1723535471326,-500.0,0.00014551,2]
[334750598,1723535471337,-500.0,0.00014551,2]
[334750599,1723535471346,-500.0,0.00014551,2]
[334750600,1723535471356,-500.0,0.00014551,2]
[334750601,1723535471365,-500.0,0.00014551,2]
[334750602,1723535471374,-500.0,0.00014551,2]
[334750603,1723535471384,-500.0,0.00014551,2]
[334750604,1723535471394,-500.0,0.00014551,2]
[334750605,1723535471403,-500.0,0.00014551,2]
[334750606,1723535471412,-500.0,0.00014551,2]
[334750607,1723535471422,-500.0,0.00014551,2]
[334750608,1723535471431,-500.0,0.00014551,2]
[334750609,1723535471441,-500.0,0.00014551,2]
[334750610,1723535471451,-631.15542211,0.00014551,2]
[334750611,1723535471460,-157.76712506,0.00014551,2]
[334750612,1723535471470,-500.0,0.00014551,2]
[334750613,1723535471479,-500.0,0.00014551,2]
[334750614,1723535471489,-500.0,0.00014551,2]
[334750615,1723535471500,-500.0,0.00014551,2]
[334750616,1723535471517,-500.0,0.00014551,2]
[334750617,1723535471528,-516.84339095,0.00014551,2]